[Event "Titled Tuesday Blitz October 31 Late 2023"]
[White "Tologon tegin, Semetei"]
[Black "Gubajdullin, Alexei"]
[WhiteFideId "13800574"]
[BlackFideId "4141202"]
[WhiteElo "2526"]
[BlackElo "2712"]
[Result "1-0"]
[Round "4"]
[TimeControl "180+1"]
[Date "2023.10.31"]
[WhiteClock "0:00:45"]
[BlackClock "0:00:16"]
[Board "54"]

1. Nc3 {[%clk 0:02:46]}  Nf6 {[%clk 0:02:58]} 2. e4 {[%clk 0:02:38]}  d6 {[%clk 0:02:58]} 3. d4 {[%clk 0:02:36]}  g6 {[%clk 0:02:58]} 4. Be3 {[%clk 0:02:34]}  Bg7 {[%clk 0:02:58]} 5. f3 {[%clk 0:02:22]}  c6 {[%clk 0:02:58]} 6. Qd2 {[%clk 0:02:21]}  b5 {[%clk 0:02:58]} 7. Bd3 {[%clk 0:02:21]}  Nbd7 {[%clk 0:02:57]} 8. h4 {[%clk 0:02:19]}  h6 {[%clk 0:02:54]} 9. Nh3 {[%clk 0:02:16]}  e5 {[%clk 0:02:54]} 10. Ne2 {[%clk 0:02:12]}  d5 {[%clk 0:02:50]} 11. c3 {[%clk 0:02:07]}  dxe4 {[%clk 0:02:49]} 12. fxe4 {[%clk 0:02:08]}  Ng4 {[%clk 0:02:49]} 13. Bg1 {[%clk 0:02:07]}  Qxh4+ {[%clk 0:02:45]} 14. Nf2 {[%clk 0:02:07]}  Qe7 {[%clk 0:02:21]} 15. Nxg4 {[%clk 0:02:06]}  exd4 {[%clk 0:02:11]} 16. Bxd4 {[%clk 0:02:05]}  Bxd4 {[%clk 0:02:05]} 17. cxd4 {[%clk 0:01:57]}  Nb6 {[%clk 0:02:00]} 18. Ne5 {[%clk 0:01:49]}  Bb7 {[%clk 0:01:58]} 19. Rxh6 {[%clk 0:01:44]}  Rxh6 {[%clk 0:01:50]} 20. Qxh6 {[%clk 0:01:45]}  O-O-O {[%clk 0:01:48]} 21. O-O-O {[%clk 0:01:43]}  Na4 {[%clk 0:01:45]} 22. Kb1 {[%clk 0:01:38]}  Kb8 {[%clk 0:01:32]} 23. Qf4 {[%clk 0:01:35]}  Ka8 {[%clk 0:01:29]} 24. Qxf7 {[%clk 0:01:35]}  Qb4 {[%clk 0:01:29]} 25. Qb3 {[%clk 0:01:34]}  Qd6 {[%clk 0:01:27]} 26. Bc2 {[%clk 0:01:30]}  a6 {[%clk 0:01:17]} 27. Nf7 {[%clk 0:01:28]}  Qe7 {[%clk 0:01:12]} 28. Nxd8 {[%clk 0:01:28]}  Qxd8 {[%clk 0:01:13]} 29. Qb4 {[%clk 0:01:24]}  Nb6 {[%clk 0:01:12]} 30. Rf1 {[%clk 0:01:15]}  Ka7 {[%clk 0:01:11]} 31. Qc5 {[%clk 0:01:15]}  Qh4 {[%clk 0:01:09]} 32. Nc3 {[%clk 0:01:06]}  Qh2 {[%clk 0:00:57]} 33. d5 {[%clk 0:01:05]}  Qxg2 {[%clk 0:00:56]} 34. Rg1 {[%clk 0:01:03]}  Qh2 {[%clk 0:00:50]} 35. dxc6 {[%clk 0:01:02]}  Bxc6 {[%clk 0:00:49]} 36. Nd5 {[%clk 0:00:56]}  Bxd5 {[%clk 0:00:41]} 37. exd5 {[%clk 0:00:57]}  Kb7 {[%clk 0:00:33]} 38. Rxg6 {[%clk 0:00:47]}  Qh1+ {[%clk 0:00:30]} 39. Qg1 {[%clk 0:00:47]}  Qxd5 {[%clk 0:00:16]} 40. Qxb6+ {[%clk 0:00:45]} 1-0


[Site "https://www.chess.com"]

[Event "Titled Tuesday Blitz October 31 Late 2023"]
[White "Gurevich, Dmitry"]
[Black "Hamitevici, Vladimir"]
[WhiteFideId "2000407"]
[BlackFideId "13902393"]
[WhiteElo "2525"]
[BlackElo "2712"]
[Result "0-1"]
[Round "4"]
[TimeControl "180+1"]
[Date "2023.10.31"]
[WhiteClock "0:00:00"]
[BlackClock "0:00:07"]
[Board "55"]

1. d4 {[%clk 0:03:00]}  d6 {[%clk 0:03:00]} 2. Nf3 {[%clk 0:02:59]}  g6 {[%clk 0:03:00]} 3. c4 {[%clk 0:02:59]}  Bg7 {[%clk 0:03:00]} 4. Nc3 {[%clk 0:03:00]}  f5 {[%clk 0:03:00]} 5. g3 {[%clk 0:02:54]}  Nf6 {[%clk 0:02:59]} 6. Bg2 {[%clk 0:02:52]}  O-O {[%clk 0:02:59]} 7. O-O {[%clk 0:02:52]}  c6 {[%clk 0:03:00]} 8. d5 {[%clk 0:02:51]}  e5 {[%clk 0:03:00]} 9. dxe6 {[%clk 0:02:47]}  Bxe6 {[%clk 0:03:00]} 10. Qd3 {[%clk 0:02:41]}  Na6 {[%clk 0:02:20]} 11. Ng5 {[%clk 0:02:29]}  Bc8 {[%clk 0:02:12]} 12. Bf4 {[%clk 0:02:24]}  Ne8 {[%clk 0:02:12]} 13. Rad1 {[%clk 0:02:16]}  Nc5 {[%clk 0:02:07]} 14. Qd2 {[%clk 0:02:09]}  h6 {[%clk 0:01:47]} 15. Nf3 {[%clk 0:02:07]}  g5 {[%clk 0:01:42]} 16. Bxd6 {[%clk 0:01:59]}  Nxd6 {[%clk 0:01:41]} 17. Qxd6 {[%clk 0:01:58]}  Qxd6 {[%clk 0:01:35]} 18. Rxd6 {[%clk 0:01:57]}  Be6 {[%clk 0:01:29]} 19. b4 {[%clk 0:01:44]}  Bxc3 {[%clk 0:01:26]} 20. bxc5 {[%clk 0:01:43]}  Rae8 {[%clk 0:01:13]} 21. Rc1 {[%clk 0:01:29]}  Bg7 {[%clk 0:01:09]} 22. e3 {[%clk 0:01:27]}  Rf7 {[%clk 0:01:05]} 23. Nd4 {[%clk 0:01:21]}  Bc8 {[%clk 0:01:05]} 24. Nb3 {[%clk 0:01:11]}  Bf8 {[%clk 0:00:59]} 25. Rd3 {[%clk 0:01:09]}  f4 {[%clk 0:00:58]} 26. Rcd1 {[%clk 0:00:50]}  fxe3 {[%clk 0:00:55]} 27. Rxe3 {[%clk 0:00:48]}  Rxe3 {[%clk 0:00:55]} 28. fxe3 {[%clk 0:00:48]}  Be6 {[%clk 0:00:53]} 29. Bf1 {[%clk 0:00:44]}  Be7 {[%clk 0:00:52]} 30. h3 {[%clk 0:00:36]}  Bc8 {[%clk 0:00:46]} 31. Kg2 {[%clk 0:00:33]}  Rf5 {[%clk 0:00:45]} 32. Be2 {[%clk 0:00:28]}  Re5 {[%clk 0:00:44]} 33. Bg4 {[%clk 0:00:20]}  Bxg4 {[%clk 0:00:34]} 34. hxg4 {[%clk 0:00:19]}  Bxc5 {[%clk 0:00:29]} 35. Nxc5 {[%clk 0:00:16]}  Rxc5 {[%clk 0:00:30]} 36. Rd7 {[%clk 0:00:15]}  b6 {[%clk 0:00:25]} 37. Rxa7 {[%clk 0:00:10]}  Rxc4 {[%clk 0:00:25]} 38. a4 {[%clk 0:00:10]}  Rxg4 {[%clk 0:00:23]} 39. Rb7 {[%clk 0:00:07]}  Rb4 {[%clk 0:00:23]} 40. Kf3 {[%clk 0:00:06]}  g4+ {[%clk 0:00:21]} 41. Ke2 {[%clk 0:00:05]}  c5 {[%clk 0:00:20]} 42. Kd3 {[%clk 0:00:05]}  h5 {[%clk 0:00:20]} 43. e4 {[%clk 0:00:04]}  h4 {[%clk 0:00:20]} 44. gxh4 {[%clk 0:00:04]}  g3 {[%clk 0:00:17]} 45. Ke2 {[%clk 0:00:02]}  Rxe4+ {[%clk 0:00:15]} 46. Kf3 {[%clk 0:00:02]}  Rxa4 {[%clk 0:00:15]} 47. Kxg3 {[%clk 0:00:02]}  Rb4 {[%clk 0:00:15]} 48. h5 {[%clk 0:00:02]}  c4 {[%clk 0:00:16]} 49. h6 {[%clk 0:00:01]}  c3 {[%clk 0:00:15]} 50. Rg7+ {[%clk 0:00:02]}  Kh8 {[%clk 0:00:15]} 51. Rc7 {[%clk 0:00:02]}  Rb3 {[%clk 0:00:15]} 52. Kf4 {[%clk 0:00:02]}  b5 {[%clk 0:00:14]} 53. Kf5 {[%clk 0:00:02]}  Rb4 {[%clk 0:00:09]} 54. Kg5 {[%clk 0:00:00]}  Rc4 {[%clk 0:00:07]} 0-1


[Site "https://www.chess.com"]

[Event "Titled Tuesday Blitz October 31 Late 2023"]
[White "Burke, Carol Ann"]
[Black "TimGrutter03"]
[WhiteFideId "11104643"]
[WhiteElo "2706"]
[BlackElo "2524"]
[Result "1-0"]
[Round "4"]
[TimeControl "180+1"]
[Date "2023.10.31"]
[WhiteClock "0:00:18"]
[BlackClock "0:00:03"]
[Board "56"]

1. d4 {[%clk 0:03:00]}  c6 {[%clk 0:03:00]} 2. c4 {[%clk 0:03:00]}  d5 {[%clk 0:02:59]} 3. Nc3 {[%clk 0:02:59]}  e6 {[%clk 0:02:58]} 4. e3 {[%clk 0:02:59]}  Nf6 {[%clk 0:02:57]} 5. Nf3 {[%clk 0:02:59]}  Bd6 {[%clk 0:02:56]} 6. Qc2 {[%clk 0:02:53]}  Nbd7 {[%clk 0:02:51]} 7. g4 {[%clk 0:02:47]}  h6 {[%clk 0:02:47]} 8. Bd2 {[%clk 0:02:46]}  dxc4 {[%clk 0:02:45]} 9. Bxc4 {[%clk 0:02:46]}  b5 {[%clk 0:02:44]} 10. Be2 {[%clk 0:02:45]}  Qb6 {[%clk 0:02:40]} 11. e4 {[%clk 0:02:20]}  e5 {[%clk 0:02:39]} 12. dxe5 {[%clk 0:02:13]}  Nxe5 {[%clk 0:02:38]} 13. Be3 {[%clk 0:01:52]}  Nxf3+ {[%clk 0:02:12]} 14. Bxf3 {[%clk 0:01:53]}  Bc5 {[%clk 0:02:07]} 15. Nd5 {[%clk 0:01:49]}  cxd5 {[%clk 0:01:45]} 16. Bxc5 {[%clk 0:01:47]}  Qa5+ {[%clk 0:01:41]} 17. Kf1 {[%clk 0:01:26]}  Qa4 {[%clk 0:01:09]} 18. b3 {[%clk 0:01:16]}  Qa6 {[%clk 0:01:08]} 19. exd5 {[%clk 0:01:11]}  Kd8 {[%clk 0:00:42]} 20. h3 {[%clk 0:01:00]}  Bb7 {[%clk 0:00:40]} 21. b4 {[%clk 0:00:48]}  Qa3 {[%clk 0:00:36]} 22. Qb3 {[%clk 0:00:42]}  Qxb3 {[%clk 0:00:26]} 23. axb3 {[%clk 0:00:43]}  a6 {[%clk 0:00:25]} 24. Kg2 {[%clk 0:00:40]}  Re8 {[%clk 0:00:23]} 25. Rhd1 {[%clk 0:00:37]}  Kd7 {[%clk 0:00:20]} 26. Rd4 {[%clk 0:00:33]}  Re5 {[%clk 0:00:19]} 27. Rad1 {[%clk 0:00:30]}  Rae8 {[%clk 0:00:18]} 28. Rf4 {[%clk 0:00:23]}  Re1 {[%clk 0:00:09]} 29. Rd2 {[%clk 0:00:21]}  Rb1 {[%clk 0:00:09]} 30. d6 {[%clk 0:00:20]}  Bxf3+ {[%clk 0:00:08]} 31. Rxf3 {[%clk 0:00:21]}  Rbe1 {[%clk 0:00:04]} 32. Ra2 {[%clk 0:00:20]}  Ra8 {[%clk 0:00:03]} 33. Re3 {[%clk 0:00:18]}  Rxe3 {[%clk 0:00:02]} 34. fxe3 {[%clk 0:00:19]}  Ne4 {[%clk 0:00:03]} 35. Kf3 {[%clk 0:00:18]}  Nxc5 {[%clk 0:00:02]} 36. bxc5 {[%clk 0:00:18]}  Kc6 {[%clk 0:00:03]} 37. b4 {[%clk 0:00:18]}  a5 {[%clk 0:00:02]} 38. Rxa5 {[%clk 0:00:18]}  Rxa5 {[%clk 0:00:02]} 39. bxa5 {[%clk 0:00:18]}  b4 {[%clk 0:00:03]} 40. Ke2 {[%clk 0:00:18]}  f5 {[%clk 0:00:01]} 41. gxf5 {[%clk 0:00:18]}  h5 {[%clk 0:00:01]} 42. Kd2 {[%clk 0:00:18]}  h4 {[%clk 0:00:01]} 43. Kc2 {[%clk 0:00:18]}  g5 {[%clk 0:00:01]} 44. fxg6 {[%clk 0:00:18]}  Kd7 {[%clk 0:00:02]} 45. g7 {[%clk 0:00:18]}  Ke6 {[%clk 0:00:03]} 46. g8=Q+ {[%clk 0:00:18]} 1-0


[Site "https://www.chess.com"]

[Event "Titled Tuesday Blitz October 31 Late 2023"]
[White "Annaberdiyev, Meylis"]
[Black "Santos Flores, Alberto"]
[WhiteFideId "14000563"]
[BlackFideId "3601234"]
[WhiteElo "2696"]
[BlackElo "2507"]
[Result "1-0"]
[Round "4"]
[TimeControl "180+1"]
[Date "2023.10.31"]
[WhiteClock "0:01:24"]
[BlackClock "0:01:10"]
[Board "58"]

1. e4 {[%clk 0:03:00]}  e6 {[%clk 0:03:00]} 2. d4 {[%clk 0:02:59]}  d5 {[%clk 0:03:00]} 3. e5 {[%clk 0:03:00]}  c5 {[%clk 0:03:00]} 4. Nf3 {[%clk 0:03:00]}  Nc6 {[%clk 0:02:59]} 5. Bd3 {[%clk 0:03:01]}  Bd7 {[%clk 0:02:56]} 6. O-O {[%clk 0:03:00]}  cxd4 {[%clk 0:02:54]} 7. Nbd2 {[%clk 0:02:59]}  Nge7 {[%clk 0:02:52]} 8. Nb3 {[%clk 0:02:55]}  Ng6 {[%clk 0:02:52]} 9. Re1 {[%clk 0:02:54]}  Qc7 {[%clk 0:02:51]} 10. Bxg6 {[%clk 0:02:52]}  hxg6 {[%clk 0:02:51]} 11. Nbxd4 {[%clk 0:02:52]}  a6 {[%clk 0:02:45]} 12. c3 {[%clk 0:02:47]}  Be7 {[%clk 0:02:37]} 13. Bf4 {[%clk 0:02:42]}  Qb6 {[%clk 0:02:22]} 14. Qd2 {[%clk 0:02:38]}  Rc8 {[%clk 0:02:20]} 15. Rad1 {[%clk 0:02:27]}  Nxd4 {[%clk 0:02:14]} 16. Nxd4 {[%clk 0:02:26]}  Bb5 {[%clk 0:02:10]} 17. Bg5 {[%clk 0:02:15]}  Bc5 {[%clk 0:02:08]} 18. Be3 {[%clk 0:02:16]}  Qc7 {[%clk 0:01:52]} 19. Nf3 {[%clk 0:01:58]}  Be7 {[%clk 0:01:45]} 20. Bg5 {[%clk 0:01:57]}  Bc5 {[%clk 0:01:45]} 21. h4 {[%clk 0:01:56]}  Bc4 {[%clk 0:01:39]} 22. a3 {[%clk 0:01:54]}  Bb3 {[%clk 0:01:37]} 23. Rc1 {[%clk 0:01:54]}  Ba4 {[%clk 0:01:37]} 24. Qf4 {[%clk 0:01:53]}  Qb6 {[%clk 0:01:33]} 25. Qxa4+ {[%clk 0:01:50]}  Kf8 {[%clk 0:01:31]} 26. Qc2 {[%clk 0:01:36]}  Qb5 {[%clk 0:01:30]} 27. Qe2 {[%clk 0:01:32]}  Qb3 {[%clk 0:01:28]} 28. Nd4 {[%clk 0:01:28]}  Qb6 {[%clk 0:01:10]} 29. b4 {[%clk 0:01:24]} 1-0


[Site "https://www.chess.com"]

[Event "Titled Tuesday Blitz October 31 Late 2023"]
[White "Buchenau, Frank"]
[Black "Leiva, Gianmarco"]
[WhiteFideId "4604350"]
[BlackFideId "3804399"]
[WhiteElo "2491"]
[BlackElo "2688"]
[Result "0-1"]
[Round "4"]
[TimeControl "180+1"]
[Date "2023.10.31"]
[WhiteClock "0:00:04"]
[BlackClock "0:00:04"]
[Board "59"]

1. e4 {[%clk 0:03:00]}  c5 {[%clk 0:03:00]} 2. Nf3 {[%clk 0:03:00]}  d6 {[%clk 0:03:01]} 3. Bb5+ {[%clk 0:02:59]}  Nd7 {[%clk 0:03:01]} 4. O-O {[%clk 0:02:59]}  a6 {[%clk 0:03:01]} 5. Bd3 {[%clk 0:02:59]}  Ngf6 {[%clk 0:02:55]} 6. Re1 {[%clk 0:02:59]}  e6 {[%clk 0:02:55]} 7. a4 {[%clk 0:02:57]}  Qc7 {[%clk 0:02:37]} 8. Na3 {[%clk 0:02:50]}  b6 {[%clk 0:02:21]} 9. c3 {[%clk 0:02:49]}  g6 {[%clk 0:02:16]} 10. Bc2 {[%clk 0:02:45]}  Bg7 {[%clk 0:02:14]} 11. d4 {[%clk 0:02:45]}  O-O {[%clk 0:02:13]} 12. Bf4 {[%clk 0:02:39]}  Nh5 {[%clk 0:02:12]} 13. Be3 {[%clk 0:02:35]}  Bb7 {[%clk 0:02:11]} 14. Bd3 {[%clk 0:02:29]}  h6 {[%clk 0:01:46]} 15. Qd2 {[%clk 0:02:26]}  Kh7 {[%clk 0:01:45]} 16. b4 {[%clk 0:02:12]}  Rac8 {[%clk 0:01:28]} 17. Rab1 {[%clk 0:02:08]}  cxd4 {[%clk 0:01:21]} 18. cxd4 {[%clk 0:02:02]}  Qc3 {[%clk 0:01:21]} 19. Nc2 {[%clk 0:01:32]}  Qxd2 {[%clk 0:01:12]} 20. Bxd2 {[%clk 0:01:29]}  Rc7 {[%clk 0:01:11]} 21. Rec1 {[%clk 0:01:13]}  Nhf6 {[%clk 0:01:08]} 22. Re1 {[%clk 0:00:58]}  Rfc8 {[%clk 0:01:07]} 23. Rb2 {[%clk 0:00:52]}  Nxe4 {[%clk 0:00:59]} 24. Bxe4 {[%clk 0:00:48]}  Bxe4 {[%clk 0:00:59]} 25. Rxe4 {[%clk 0:00:48]}  Rxc2 {[%clk 0:01:00]} 26. Rxc2 {[%clk 0:00:47]}  Rxc2 {[%clk 0:01:00]} 27. h4 {[%clk 0:00:40]}  Nf6 {[%clk 0:00:55]} 28. Rf4 {[%clk 0:00:37]}  Nd5 {[%clk 0:00:56]} 29. Rxf7 {[%clk 0:00:36]}  Rc7 {[%clk 0:00:53]} 30. Rxc7 {[%clk 0:00:34]}  Nxc7 {[%clk 0:00:54]} 31. Kf1 {[%clk 0:00:30]}  Bf6 {[%clk 0:00:23]} 32. Ke2 {[%clk 0:00:29]}  Nd5 {[%clk 0:00:20]} 33. Kd3 {[%clk 0:00:28]}  b5 {[%clk 0:00:18]} 34. axb5 {[%clk 0:00:27]}  axb5 {[%clk 0:00:19]} 35. g3 {[%clk 0:00:24]}  Kg7 {[%clk 0:00:17]} 36. Ne1 {[%clk 0:00:23]}  h5 {[%clk 0:00:15]} 37. Nc2 {[%clk 0:00:22]}  Kf7 {[%clk 0:00:13]} 38. Ne3 {[%clk 0:00:22]}  Ne7 {[%clk 0:00:10]} 39. d5 {[%clk 0:00:19]}  exd5 {[%clk 0:00:09]} 40. Bc3 {[%clk 0:00:17]}  Bxc3 {[%clk 0:00:05]} 41. Kxc3 {[%clk 0:00:18]}  Ke6 {[%clk 0:00:05]} 42. Kd4 {[%clk 0:00:17]}  Nc6+ {[%clk 0:00:04]} 43. Kd3 {[%clk 0:00:14]}  Nxb4+ {[%clk 0:00:05]} 44. Kd4 {[%clk 0:00:14]}  Nc6+ {[%clk 0:00:06]} 45. Kd3 {[%clk 0:00:14]}  d4 {[%clk 0:00:03]} 46. Nc2 {[%clk 0:00:13]}  Kd5 {[%clk 0:00:04]} 47. f3 {[%clk 0:00:12]}  Ne5+ {[%clk 0:00:04]} 48. Kd2 {[%clk 0:00:09]}  Nxf3+ {[%clk 0:00:04]} 49. Ke2 {[%clk 0:00:09]}  Ne5 {[%clk 0:00:04]} 50. Ne1 {[%clk 0:00:09]}  Ke4 {[%clk 0:00:04]} 51. Ng2 {[%clk 0:00:08]}  d3+ {[%clk 0:00:04]} 52. Kd2 {[%clk 0:00:08]}  Nc4+ {[%clk 0:00:04]} 53. Kd1 {[%clk 0:00:07]}  b4 {[%clk 0:00:04]} 54. Nf4 {[%clk 0:00:07]}  b3 {[%clk 0:00:04]} 55. Kc1 {[%clk 0:00:06]}  b2+ {[%clk 0:00:04]} 56. Kb1 {[%clk 0:00:04]}  d2 {[%clk 0:00:04]} 0-1


[Site "https://www.chess.com"]

[Event "Titled Tuesday Blitz October 31 Late 2023"]
[White "Zavgorodniy, Sergiy"]
[Black "Molenda, Marcin"]
[WhiteFideId "14110148"]
[BlackFideId "1173065"]
[WhiteElo "2688"]
[BlackElo "2487"]
[Result "1/2-1/2"]
[Round "4"]
[TimeControl "180+1"]
[Date "2023.10.31"]
[WhiteClock "0:00:11"]
[BlackClock "0:01:07"]
[Board "60"]

1. d4 {[%clk 0:03:00]}  d5 {[%clk 0:02:57]} 2. c4 {[%clk 0:03:00]}  c6 {[%clk 0:02:57]} 3. e3 {[%clk 0:03:00]}  Nf6 {[%clk 0:02:57]} 4. Bd3 {[%clk 0:03:00]}  dxc4 {[%clk 0:02:57]} 5. Bxc4 {[%clk 0:03:00]}  Bf5 {[%clk 0:02:52]} 6. Qb3 {[%clk 0:03:00]}  e6 {[%clk 0:02:48]} 7. Qxb7 {[%clk 0:02:59]}  Nbd7 {[%clk 0:02:47]} 8. Qb3 {[%clk 0:03:00]}  Rb8 {[%clk 0:02:43]} 9. Qd1 {[%clk 0:02:59]}  Bd6 {[%clk 0:02:39]} 10. Nf3 {[%clk 0:03:00]}  O-O {[%clk 0:02:39]} 11. O-O {[%clk 0:02:59]}  e5 {[%clk 0:02:39]} 12. dxe5 {[%clk 0:02:50]}  Nxe5 {[%clk 0:02:40]} 13. Nxe5 {[%clk 0:02:45]}  Bxe5 {[%clk 0:02:41]} 14. Qxd8 {[%clk 0:02:44]}  Rfxd8 {[%clk 0:02:42]} 15. Nc3 {[%clk 0:02:44]}  Bxc3 {[%clk 0:02:37]} 16. bxc3 {[%clk 0:02:45]}  Bd3 {[%clk 0:02:38]} 17. Bxd3 {[%clk 0:02:44]}  Rxd3 {[%clk 0:02:39]} 18. c4 {[%clk 0:02:36]}  Ne4 {[%clk 0:02:28]} 19. f3 {[%clk 0:02:20]}  Nd6 {[%clk 0:02:28]} 20. c5 {[%clk 0:02:10]}  Nc4 {[%clk 0:02:19]} 21. e4 {[%clk 0:02:09]}  Rc3 {[%clk 0:02:12]} 22. Bf4 {[%clk 0:02:07]}  Rb2 {[%clk 0:02:09]} 23. Rfc1 {[%clk 0:01:29]}  Rxc1+ {[%clk 0:01:53]} 24. Rxc1 {[%clk 0:01:30]}  Na5 {[%clk 0:01:53]} 25. a4 {[%clk 0:01:29]}  h6 {[%clk 0:01:49]} 26. Rd1 {[%clk 0:01:26]}  Rc2 {[%clk 0:01:43]} 27. Rd8+ {[%clk 0:01:24]}  Kh7 {[%clk 0:01:42]} 28. Rd7 {[%clk 0:01:19]}  Rxc5 {[%clk 0:01:41]} 29. Rxf7 {[%clk 0:01:12]}  a6 {[%clk 0:01:28]} 30. Ra7 {[%clk 0:00:49]}  Rc4 {[%clk 0:01:28]} 31. Rxa6 {[%clk 0:00:46]}  Rxa4 {[%clk 0:01:28]} 32. Bc7 {[%clk 0:00:42]}  Ra1+ {[%clk 0:01:24]} 33. Kf2 {[%clk 0:00:42]}  Nb3 {[%clk 0:01:25]} 34. Rxc6 {[%clk 0:00:36]}  Ra2+ {[%clk 0:01:23]} 35. Kg3 {[%clk 0:00:35]}  Nd4 {[%clk 0:01:19]} 36. Rc4 {[%clk 0:00:28]}  Ne2+ {[%clk 0:01:17]} 37. Kh3 {[%clk 0:00:22]}  Ng1+ {[%clk 0:01:17]} 38. Kg3 {[%clk 0:00:23]}  Ne2+ {[%clk 0:01:17]} 39. Kg4 {[%clk 0:00:23]}  Ng1 {[%clk 0:01:13]} 40. g3 {[%clk 0:00:22]}  Rxh2 {[%clk 0:01:12]} 41. Kf4 {[%clk 0:00:21]}  Rf2 {[%clk 0:01:11]} 42. Rc3 {[%clk 0:00:11]}  Ne2+ {[%clk 0:01:10]} 43. Ke3 {[%clk 0:00:11]}  Rxf3+ {[%clk 0:01:11]} 44. Kxf3 {[%clk 0:00:12]}  Nxc3 {[%clk 0:01:12]} 45. Be5 {[%clk 0:00:11]}  Na4 {[%clk 0:01:08]} 46. Bd4 {[%clk 0:00:11]}  Kg6 {[%clk 0:01:07]} 47. Ke3 {[%clk 0:00:12]}  Kf7 {[%clk 0:01:04]} 48. Kd3 {[%clk 0:00:12]}  Ke6 {[%clk 0:01:05]} 49. Kc4 {[%clk 0:00:12]}  g5 {[%clk 0:01:02]} 50. Kb4 {[%clk 0:00:12]}  Nb6 {[%clk 0:01:02]} 51. Bxb6 {[%clk 0:00:12]}  Ke5 {[%clk 0:01:03]} 52. Kc3 {[%clk 0:00:09]}  Kxe4 {[%clk 0:01:03]} 53. Kd2 {[%clk 0:00:10]}  Kf3 {[%clk 0:01:03]} 54. Bc7 {[%clk 0:00:10]}  h5 {[%clk 0:01:04]} 55. Ke1 {[%clk 0:00:10]}  h4 {[%clk 0:01:04]} 56. gxh4 {[%clk 0:00:10]}  gxh4 {[%clk 0:01:05]} 57. Kf1 {[%clk 0:00:10]}  h3 {[%clk 0:01:06]} 58. Kg1 {[%clk 0:00:11]}  h2+ {[%clk 0:01:07]} 59. Kxh2 {[%clk 0:00:11]} 1/2-1/2


[Site "https://www.chess.com"]

[Event "Titled Tuesday Blitz October 31 Late 2023"]
[White "Mystery2007"]
[Black "Mendez Fortes, Eduardo Jesus"]
[BlackFideId "3502376"]
[WhiteElo "2471"]
[BlackElo "2685"]
[Result "1-0"]
[Round "4"]
[TimeControl "180+1"]
[Date "2023.10.31"]
[WhiteClock "0:00:12"]
[BlackClock "0:00:04"]
[Board "61"]

1. Nf3 {[%clk 0:03:00]}  d5 {[%clk 0:02:59]} 2. c4 {[%clk 0:02:59]}  e6 {[%clk 0:02:59]} 3. g3 {[%clk 0:03:00]}  Nf6 {[%clk 0:02:59]} 4. Bg2 {[%clk 0:03:01]}  dxc4 {[%clk 0:02:59]} 5. O-O {[%clk 0:03:01]}  Nbd7 {[%clk 0:03:00]} 6. Qc2 {[%clk 0:02:59]}  a6 {[%clk 0:03:00]} 7. a4 {[%clk 0:02:57]}  c5 {[%clk 0:02:59]} 8. Na3 {[%clk 0:02:54]}  Qc7 {[%clk 0:02:56]} 9. Qxc4 {[%clk 0:02:53]}  b6 {[%clk 0:02:54]} 10. d3 {[%clk 0:02:52]}  Bb7 {[%clk 0:02:53]} 11. Bf4 {[%clk 0:02:51]}  Bd6 {[%clk 0:02:45]} 12. Bxd6 {[%clk 0:02:50]}  Qxd6 {[%clk 0:02:46]} 13. Qc2 {[%clk 0:02:45]}  O-O {[%clk 0:02:44]} 14. Rfd1 {[%clk 0:02:42]}  Nd5 {[%clk 0:02:42]} 15. d4 {[%clk 0:02:30]}  Nb4 {[%clk 0:02:42]} 16. Qc3 {[%clk 0:02:23]}  Qe7 {[%clk 0:02:33]} 17. dxc5 {[%clk 0:02:19]}  bxc5 {[%clk 0:02:34]} 18. Rac1 {[%clk 0:02:07]}  Na2 {[%clk 0:02:22]} 19. Qc2 {[%clk 0:01:50]}  Nxc1 {[%clk 0:02:19]} 20. Rxc1 {[%clk 0:01:51]}  Rab8 {[%clk 0:02:12]} 21. Nc4 {[%clk 0:01:51]}  Nf6 {[%clk 0:02:10]} 22. Nfe5 {[%clk 0:01:43]}  Bxg2 {[%clk 0:02:11]} 23. Kxg2 {[%clk 0:01:43]}  Qb7+ {[%clk 0:02:08]} 24. f3 {[%clk 0:01:43]}  Rfd8 {[%clk 0:02:07]} 25. Na5 {[%clk 0:01:34]}  Qc7 {[%clk 0:01:58]} 26. Nac6 {[%clk 0:01:33]}  Rbc8 {[%clk 0:01:55]} 27. Qxc5 {[%clk 0:01:06]}  Re8 {[%clk 0:00:34]} 28. b4 {[%clk 0:01:04]}  h6 {[%clk 0:00:30]} 29. b5 {[%clk 0:01:04]}  axb5 {[%clk 0:00:31]} 30. axb5 {[%clk 0:01:05]}  Nd5 {[%clk 0:00:31]} 31. e4 {[%clk 0:01:02]}  Nb6 {[%clk 0:00:30]} 32. Rd1 {[%clk 0:00:56]}  f6 {[%clk 0:00:28]} 33. Ng6 {[%clk 0:00:55]}  Kh7 {[%clk 0:00:24]} 34. Nge7 {[%clk 0:00:48]}  Ra8 {[%clk 0:00:24]} 35. Rd6 {[%clk 0:00:33]}  Ra2+ {[%clk 0:00:24]} 36. Kh3 {[%clk 0:00:33]}  Nd7 {[%clk 0:00:12]} 37. Qh5 {[%clk 0:00:29]}  Rea8 {[%clk 0:00:07]} 38. Qg6+ {[%clk 0:00:26]}  Kh8 {[%clk 0:00:07]} 39. Rxe6 {[%clk 0:00:22]}  Nf8 {[%clk 0:00:08]} 40. Qf7 {[%clk 0:00:14]}  Nxe6 {[%clk 0:00:08]} 41. Qxe6 {[%clk 0:00:14]}  Re8 {[%clk 0:00:09]} 42. Qf7 {[%clk 0:00:13]}  Rc8 {[%clk 0:00:05]} 43. Qxa2 {[%clk 0:00:12]}  Rf8 {[%clk 0:00:03]} 44. Qd5 {[%clk 0:00:11]}  Qb7 {[%clk 0:00:03]} 45. Ng6+ {[%clk 0:00:11]}  Kh7 {[%clk 0:00:04]} 46. Nxf8+ {[%clk 0:00:11]}  Kh8 {[%clk 0:00:05]} 47. Ng6+ {[%clk 0:00:11]}  Kh7 {[%clk 0:00:05]} 48. Nce7 {[%clk 0:00:11]}  Qb8 {[%clk 0:00:05]} 49. Qg8+ {[%clk 0:00:10]}  Qxg8 {[%clk 0:00:05]} 50. Nxg8 {[%clk 0:00:11]}  Kxg6 {[%clk 0:00:04]} 51. b6 {[%clk 0:00:12]} 1-0


[Site "https://www.chess.com"]